fUST/lending_fUST_20250501
["ID","MTS","AMOUNT","RATE_DAILY","PERIOD"]
[359549414,1746106869374,-361.743532,0.000258,7]
[359549415,1746106869399,-361.743532,0.000258,7]
[359549416,1746106869424,-8395.83176156,0.000258,2]
[359549423,1746107206146,-250.0,0.00021698,2]
[359549424,1746107206168,-1000.0,0.00021798,2]
[359549425,1746107206188,-1144.0562558,0.0002408,2]
[359549426,1746107206209,-262.1185605,0.0002478,2]
[359549427,1746107206231,-300.0,0.00025826,2]
[359549428,1746107206253,-300.0,0.00025826,2]
[359549429,1746107206281,-500.0,0.00025826,2]
[359549430,1746107206302,-8521.35714936,0.00025827,2]
[359549451,1746107432627,-177.50320912,0.00021598,2]
[359549452,1746107432638,-1000.0,0.00021598,2]
[359549454,1746107432648,-150.0,0.00023727,2]
[359549455,1746107432659,-300.0,0.00024652,2]
[359549456,1746107432668,-10000.0,0.00024653,2]
[359549457,1746107432678,-188.0,0.000258,7]
[359549458,1746107432689,-188.0,0.000258,2]
[359549459,1746107432700,-188.0,0.000258,2]
[359549460,1746107432709,-188.0,0.000258,3]
[359549461,1746107432719,-188.0,0.000258,3]
[359549462,1746107432729,-16378.64285064,0.00025827,2]
[359549463,1746107432739,-5393.79953393,0.000259,14]
[359549464,1746107432748,-160.0,0.00025912,2]
[359549465,1746107432758,-151.0,0.00025921,7]
[359549466,1746107432768,-151.0,0.00025921,7]
[359549467,1746107432778,-151.0,0.00025921,7]
[359549468,1746107432789,-167.505917,0.00025921,7]
[359549470,1746107432798,-167.505917,0.00025921,7]
[359549471,1746107432808,-151.0,0.00025921,7]
[359549472,1746107432818,-151.0,0.00025921,7]
[359549473,1746107432828,-7452.29762208,0.00025921,2]
[359549474,1746107432840,-8647.47285038,0.00025921,2]
[359549475,1746107432852,-3709.1905998,0.00026417,15]
[359549476,1746107432876,-1684.60893405,0.00026417,15]
[359549477,1746107432885,-420.0,0.00026715,2]
[359549478,1746107432895,-160.0,0.000268,7]
[359549479,1746107432905,-361.743532,0.000268,7]
[359549480,1746107432914,-361.743532,0.000268,7]
[359549481,1746107432923,-5393.79953385,0.00026934,16]
[359549482,1746107432933,-313.5174939,0.00027,3]
[359549483,1746107432942,-1010.086497,0.00027397,2]
[359549484,1746107432953,-5393.79953385,0.00027452,17]
[359549485,1746107432963,-159.677114,0.000278,7]
[359549486,1746107433011,-152.672107,0.000278,7]
[359549487,1746107433021,-151.0,0.000278,7]
[359549488,1746107433030,-167.505917,0.000278,7]
[359549489,1746107433040,-167.505917,0.000278,7]
[359549490,1746107433050,-151.0,0.000278,7]
[359549491,1746107433060,-151.0,0.000278,7]
[359549492,1746107433070,-5393.79953385,0.00027969,18]
[359549493,1746107433080,-6551.0,0.00028017,2]
[359549494,1746107433089,-1013.0323373,0.00028349,2]
[359549495,1746107433099,-5393.79953385,0.00028486,19]
[359549496,1746107433108,-361.743532,0.000288,7]
[359549497,1746107433118,-361.743532,0.000288,7]
[359549498,1746107433127,-160.0,0.000288,7]
[359549499,1746107433137,-12595.7684382,0.000288,7]
[359549500,1746107433147,-160.0,0.000288,7]
[359549501,1746107433157,-291.81510874,0.0002887,2]
[359549502,1746107433166,-92.83311632,0.0002891,2]
[359549503,1746107433406,-157.16688368,0.0002891,2]
[359549504,1746107433416,-587.0,0.00028952,2]
[359549505,1746107433425,-3713.28996112,0.00029003,20]
[359549506,1746107433437,-1680.50957273,0.00029003,20]
[359549507,1746107433446,-500.0,0.0002922,5]
[359549508,1746107433455,-2448.82265511,0.00029521,21]
[359549509,1746107433474,-2944.97687874,0.00029521,21]
[359549510,1746107433483,-250.0,0.0003,30]
[359549511,1746107433493,-260.0,0.0003,2]
[359549512,1746107433502,-5000.0,0.00030007,2]
[359549513,1746107433512,-5393.79953385,0.00030038,22]
[359549514,1746107433521,-155.0,0.00030137,2]
[359549515,1746107433530,-151.0,0.00030352,7]
[359549516,1746107433540,-167.505917,0.00030352,7]
[359549517,1746107433549,-167.505917,0.00030352,7]
[359549518,1746107433562,-151.0,0.00030352,7]
[359549519,1746107433572,-151.0,0.00030352,7]
[359549520,1746107433581,-5393.79953385,0.00030555,23]
[359549521,1746107433591,-182.07995741,0.00030726,2]
[359549522,1746107433600,-841.10298755,0.00030726,2]
[359549523,1746107433610,-421.4777418,0.00030726,2]
[359549524,1746107433620,-160.0,0.00030726,2]
[359549525,1746107433630,-160.0,0.00030726,2]
[359549526,1746107433640,-7755.08382835,0.00030726,2]
[359549527,1746107433652,-4840.68460985,0.00030726,2]
[359549528,1746107433662,-566.586,0.0003078,2]
[359549529,1746107433672,-707.0,0.0003078,2]
[359549530,1746107433682,-2245.0,0.0003078,2]
[359549531,1746107433692,-403.0,0.0003078,2]
[359549532,1746107433703,-182.799,0.00030969,27]
[359549533,1746107433713,-249.99999,0.00031,7]
[359549534,1746107433723,-445.20969322,0.00031072,24]
[359549541,1746107438722,-841.10298755,0.00030723,2]
[359549542,1746107438733,-182.07995741,0.00030723,2]
[359549543,1746107438742,-4948.58984063,0.00031072,24]
[359549544,1746107438752,-823.0,0.00031376,3]
[359549545,1746107438762,-243.81176389,0.00031542,2]
[359549546,1746107438771,-5393.79953385,0.0003159,25]
[359549547,1746107438781,-800.0,0.00031834,2]
[359549548,1746107438791,-150.112017,0.000319,2]
[359549549,1746107438800,-1558.23805295,0.000319,2]
[359549550,1746107438811,-816.68442373,0.0003191,2]
[359549551,1746107438820,-800.0,0.00031923,2]
[359549552,1746107438830,-800.0,0.00031929,2]
[359549553,1746107438839,-663.69428231,0.00031988,3]
[359549554,1746107438850,-20796.41450086,0.0003199,10]
[359549555,1746107438872,-5500.0,0.0003199,10]
[359549567,1746107441099,-292.868,0.0003078,2]
[359549568,1746107441110,-2589.33625548,0.0003199,10]
[359549569,1746107441121,-11246.3353615,0.0003199,10]
[359549570,1746107441133,-4315.0,0.0003199,10]
[359549571,1746107441157,-43693.2698013,0.0003199,10]
[359549572,1746107441167,-86588.1677585,0.0003199,2]
[359549573,1746107441176,-9825.30390228,0.0003199,2]
[359549574,1746107441186,-51893.2585379,0.00032,30]
[359549602,1746107444005,-1364.17021841,0.00032,30]
[359549643,1746107444208,-14494.65819711,0.00032,30]
[359549644,1746107444223,-1096.86,0.00032,30]
[359549677,1746107446807,-1828.66687269,0.00032,30]
[359549678,1746107446879,-7287.69041086,0.00032,30]
[359549698,1746108445896,1000.0,0.00025,30]
[359549721,1746108631812,-192.1785835,0.00024669,2]
[359549722,1746108631822,-2529.8259118,0.00024669,2]
[359549723,1746108631832,-1391.85612852,0.00025105,2]
[359549724,1746108631843,-355.16904429,0.00025205,2]
[359549725,1746108631852,-300.0,0.00026848,2]
[359549726,1746108631863,-300.0,0.00026848,2]
[359549727,1746108631873,-284.6733967,0.00026938,2]
[359549728,1746108631883,-313.5174939,0.00027,3]
[359549729,1746108631893,-2000.0,0.00028,2]
[359549730,1746108631903,-12595.7684382,0.000288,7]
[359549731,1746108631913,-160.0,0.000288,7]
[359549732,1746108631923,-420.0,0.0002903,2]
[359549733,1746108631933,-420.0,0.0002903,2]
[359549734,1746108631943,-152.0,0.00029146,2]
[359549735,1746108631953,-157.52,0.00029156,2]
[359549736,1746108631963,-24900.0,0.00029156,2]
[359549737,1746108631973,-1584.69924894,0.00029314,2]
[359549738,1746108631982,-193.44525,0.0003,2]
[359549739,1746108631992,-2000.0,0.0003,30]
[359549740,1746108632002,-173.0,0.0003,2]
[359549741,1746108632012,-173.0,0.0003,2]
[359549742,1746108632022,-173.0,0.0003,2]
[359549743,1746108632031,-160.0,0.00030728,2]
[359549744,1746108632043,-421.4777418,0.00030728,2]
[359549745,1746108632052,-12595.7684382,0.00030728,2]
[359549746,1746108632065,-841.10298755,0.00030731,2]
[359549747,1746108632074,-182.07995741,0.00030731,2]
[359549748,1746108632084,-160.0,0.00030731,2]
[359549749,1746108632092,-160.0,0.00030734,2]
[359549750,1746108632101,-160.0,0.00030734,2]
[359549751,1746108632111,-182.799,0.00030765,27]
[359549752,1746108632120,-150.0,0.00030782,2]
[359549753,1746108632128,-209.744,0.00030782,2]
[359549754,1746108632136,-545.0,0.00030782,2]
[359549755,1746108632143,-707.0,0.00030782,2]
[359549756,1746108632150,-2245.0,0.00030782,2]
[359549757,1746108632156,-403.0,0.00030782,2]
[359549758,1746108632163,-199.97334055,0.00030972,2]
[359549759,1746108632171,-1000.0,0.00030972,2]
[359549760,1746108632177,-587.0,0.0003139,2]
[359549761,1746108632185,-587.0,0.0003139,3]
[359549762,1746108632192,-262.74752053,0.00031503,2]
[359549763,1746108632201,-262.74752053,0.00031768,2]
[359549764,1746108632213,-3677.04555131,0.0003196,2]
[359549765,1746108632222,-25080.0655862,0.0003197,2]
[359549766,1746108632232,-3677.04555131,0.00031978,2]
[359549767,1746108632242,-16514.60712898,0.0003198,2]
[359549768,1746108632255,-959.01,0.0003198,2]
[359549769,1746108632267,-7606.44845722,0.0003198,2]
[359549770,1746108632277,-2015.07312526,0.00031988,2]
[359549771,1746108632379,-670.53746207,0.00031988,2]
[359549789,1746108637850,-2803.05462166,0.00031988,2]
[359549790,1746108637909,-895.10319183,0.00031988,2]
[359549791,1746108637968,-434.81370448,0.00031988,2]
[359549792,1746108637981,-2632.55469546,0.00031988,2]
[359549888,1746109504632,-151.0,0.00018585,2]
[359549889,1746109504657,-129.99033941,0.00021,2]
[359549890,1746109511399,-678.21658469,0.00021,2]
[359549891,1746109525253,-177.41597393,0.00021,2]
[359549892,1746109530670,-14.37710197,0.00021,2]
[359549956,1746109671982,-202.62605127,0.00018,2]
[359549957,1746109674986,-214.26604211,0.00018,2]
[359549958,1746109680853,-160.0,0.00018,2]
[359549959,1746109682343,300.0,0.00017999,2]
[359549960,1746109685195,-179.0,0.00018,2]
[359549962,1746109687525,-151.68964044,0.00018,2]
[359549963,1746109690574,-12054.39596482,0.00018,2]
[359549964,1746109690596,-236.60403518,0.00019639,2]
[359549965,1746109694794,-183.39596482,0.00019639,2]
[359550016,1746109721603,-417.8988578,0.0002,2]
[359550021,1746109730379,-339.34786087,0.0002,2]
[359550022,1746109733909,-160.65213813,0.0002,2]
[359550023,1746109741186,-245.72976436,0.0002,2]
[359550024,1746109746180,-17.51525378,0.0002,2]
[359550025,1746109746204,-178.21162738,0.0002,2]
[359550054,1746109831998,-2510.49540641,0.0002122,2]
[359550055,1746109832008,-198.37355346,0.00023852,2]
[359550056,1746109832018,-507.9894409,0.00023952,2]
[359550057,1746109832028,-199.97334055,0.00024469,2]
[359550058,1746109832038,-250.0,0.00024469,2]
[359550059,1746109832048,-1000.0,0.00024569,2]
[359550060,1746109832059,-1198.49197141,0.0002485,2]
[359550061,1746109832068,-198.37355345,0.0002485,2]
[359550063,1746109832078,-1200.0,0.00024899,2]
[359550065,1746109832089,-300.0,0.00024899,2]
[359550067,1746109832098,-3296.5242147,0.000249,12]
[359550070,1746109832108,-300.0,0.00024949,2]
[359550073,1746109832118,-325.74990527,0.00024949,10]
[359550075,1746109832128,-2492.7985599,0.0002495,2]
[359550076,1746109832139,-606.84252089,0.0002495,2]
[359550077,1746109832152,-4906.80751074,0.0002495,2]
[359550093,1746109838111,-20063.76653879,0.0002495,2]
[359550094,1746109838122,-500.0,0.0002495,2]
[359550095,1746109838132,-500.0,0.0002495,2]
[359550096,1746109838142,-500.0,0.0002495,2]
[359550097,1746109838152,-448.28875479,0.0002495,2]
[359550098,1746109838162,-500.0,0.0002495,2]
[359550099,1746109838172,-500.0,0.0002495,2]
[359550100,1746109838182,-500.0,0.0002495,2]
[359550101,1746109838192,-500.0,0.0002495,2]
[359550102,1746109838202,-500.0,0.0002495,2]
[359550103,1746109838212,-500.0,0.0002495,2]
[359550104,1746109838222,-431.26919535,0.0002495,2]
[359550105,1746109838231,-339.0,0.0002495,2]
[359550106,1746109838241,-500.0,0.0002495,2]
[359550107,1746109838252,-500.0,0.0002495,2]
[359550108,1746109838262,-500.0,0.0002495,2]
[359550109,1746109838272,-500.0,0.0002495,2]
[359550110,1746109838282,-500.0,0.0002495,2]
[359550111,1746109838292,-500.0,0.0002495,2]
[359550112,1746109838301,-500.0,0.0002495,2]
[359550113,1746109838311,-500.0,0.0002495,2]
[359550114,1746109838322,-641.2,0.0002495,2]
[359550115,1746109838332,-500.0,0.0002495,2]
[359550116,1746109838342,-500.0,0.0002495,2]
[359550117,1746109838354,-500.0,0.0002495,2]
[359550118,1746109838364,-500.0,0.0002495,2]
[359550119,1746109838375,-500.0,0.0002495,2]
[359550120,1746109838385,-500.0,0.0002495,2]
[359550121,1746109838394,-500.0,0.0002495,2]
[359550122,1746109838405,-500.0,0.0002495,2]
[359550123,1746109838415,-500.0,0.0002495,2]
[359550124,1746109838424,-500.0,0.0002495,2]
[359550125,1746109838435,-500.0,0.0002495,2]
[359550126,1746109838445,-500.0,0.0002495,2]
[359550127,1746109838455,-500.0,0.0002495,2]
[359550128,1746109838465,-500.0,0.0002495,2]
[359550129,1746109838475,-500.0,0.0002495,2]
[359550130,1746109838484,-219.07911519,0.0002495,2]
[359550131,1746109838495,-500.0,0.0002495,2]
[359550132,1746109838505,-500.0,0.0002495,2]
[359550133,1746109838515,-497.17120368,0.0002495,2]
[359550134,1746109838524,-500.0,0.0002495,2]
[359550135,1746109838535,-500.0,0.0002495,2]
[359550136,1746109838544,-500.0,0.0002495,2]
[359550137,1746109838554,-463.93799336,0.00025,2]
[359550138,1746109838564,-500.0,0.00025,2]
[359550139,1746109838574,-500.0,0.00025,2]
[359550140,1746109838584,-500.0,0.00025,2]
[359550141,1746109838594,-501.65508662,0.00025,2]
[359550142,1746109838606,-151.67676012,0.00025,2]
[359550143,1746109838617,-500.0,0.00025,2]
[359550144,1746109838627,-502.98982907,0.00025,2]
[359550145,1746109838637,-500.0,0.00025,2]
[359550146,1746109838647,-300.0,0.00025,2]
[359550147,1746109838657,-500.0,0.00025,2]
[359550148,1746109838668,-500.0,0.00025,2]
[359550149,1746109838678,-501.25767588,0.00025,2]
[359550150,1746109838688,-500.0,0.00025,2]
[359550151,1746109838698,-501.56201146,0.00025,2]
[359550152,1746109838707,-500.64140692,0.00025,2]
[359550153,1746109838718,-500.0,0.00025,2]
[359550154,1746109838728,-500.0,0.00025,2]
[359550155,1746109838738,-509.25666339,0.00025,2]
[359550156,1746109838750,-500.0,0.00025,2]
[359550157,1746109838761,-500.0,0.00025,2]
[359550158,1746109838771,-500.83280941,0.00025,2]
[359550159,1746109838780,-160.0,0.00025095,2]
[359550160,1746109838791,-421.4777418,0.00025095,2]
[359550161,1746109838801,-12595.7684382,0.00025095,2]
[359550162,1746109838812,-3296.52421456,0.00025452,13]
[359550163,1746109838822,-474.74770499,0.00025953,2]
[359550164,1746109838832,-250.0,0.00026,30]
[359550165,1746109838842,-3296.52421456,0.00026003,14]
[359550166,1746109838851,-18591.5065736,0.0002644,2]
[359550167,1746109838864,-3296.52421456,0.00026555,15]
[359550168,1746109838874,-600.0,0.00026644,2]
[359550169,1746109838884,-420.0,0.00026977,2]
[359550170,1746109838894,-313.5174939,0.00027,3]
[359550171,1746109838908,-420.0,0.00027029,2]
[359550172,1746109838918,-250.0,0.00027045,2]
[359550173,1746109838928,-1198.49197134,0.00027092,2]
[359550174,1746109838938,-1680.0,0.00027099,2]
[359550175,1746109838948,-3296.52421456,0.00027107,16]
[359550176,1746109838958,-190.1167793,0.00027397,120]
[359550177,1746109838969,-975.886993,0.00027397,2]
[359550178,1746109838979,-3296.52421456,0.00027659,17]
[359550179,1746109838989,-510.93041603,0.00027671,5]
[359550180,1746109839000,-170.44753878,0.00027671,5]
[359550181,1746109839010,-500.0,0.00027671,2]
[359550182,1746109839020,-500.0,0.00027671,5]
[359550183,1746109839030,-501.68673466,0.00027671,5]
[359550184,1746109839299,-23121.5176517,0.00027959,2]
[359550185,1746109839311,-1836.41307603,0.0002799,2]
[359550186,1746109839323,-250.0,0.00028,30]
[359550187,1746109839332,-165.7016555,0.00028011,2]
[359550188,1746109839342,-352.15111733,0.00028127,2]
[359550189,1746109839353,-7955.07358107,0.0002821,3]
[359550190,1746109839363,-3296.52421456,0.0002821,18]
[359550191,1746109839374,-900.0,0.00028288,5]
[359550192,1746109839383,-200000.0,0.000287,2]
[359550193,1746109839393,-3296.52421456,0.00028762,19]
[359550194,1746109839403,-27415.37829041,0.0002879,2]
[359550195,1746109839413,-23121.5176517,0.0002879,2]
[359550196,1746109839423,-35000.0,0.000288,3]
[359550197,1746109839432,-15819.565545,0.000288,3]
[359550198,1746109839442,-451.40982879,0.000288,3]
[359550199,1746109839452,-182.07995741,0.000288,3]
[359550200,1746109839462,-160.0,0.000288,3]
[359550201,1746109839471,-421.4777418,0.000288,3]
[359550202,1746109839481,-587.0,0.00029228,2]
[359550203,1746109839491,-587.0,0.00029283,2]
[359550204,1746109839500,-3296.52421456,0.00029314,20]
[359550205,1746109839510,-1198.49197134,0.00029333,2]
[359550206,1746109839520,-2351.0,0.00029493,2]
[359550207,1746109839530,-200000.0,0.000297,2]
[359550208,1746109839539,-23121.5176517,0.0002979,2]
[359550209,1746109839549,-30000.0,0.000298,3]
[359550210,1746109839559,-3296.52421456,0.00029866,21]
[359550211,1746109839569,-1200.0,0.00029932,5]
[359550212,1746109839578,-388.67263728,0.00029987,5]
[359550213,1746109839588,-250.0,0.0003,30]
[359550215,1746109839598,-564.0799422,0.0003,7]
[359550216,1746109839609,-369.10312268,0.0003,2]
[359550217,1746109839618,-156.0,0.0003,2]
[359550218,1746109839628,-2271.59126983,0.00030007,2]
[359550219,1746109839638,-3808.68038631,0.00030036,2]
[359550220,1746109839648,-23121.5176517,0.00030116,2]
[359550221,1746109839657,-115607.588259,0.00030126,2]
[359550222,1746109839667,-400.0,0.00030136,5]
[359550223,1746109839677,-400.0,0.00030136,5]
[359550224,1746109839686,-410.30232559,0.00030136,5]
[359550225,1746109839696,-400.0,0.00030136,5]
[359550226,1746109839706,-400.0,0.00030136,5]
[359550227,1746109839718,-400.0,0.00030136,5]
[359550228,1746109839728,-503.20273303,0.00030136,5]
[359550229,1746109839738,-400.0,0.00030136,5]
[359550230,1746109839750,-400.0,0.00030136,5]
[359550231,1746109839759,-400.0,0.00030136,5]
[359550232,1746109839769,-1000.0,0.00030136,5]
[359550233,1746109839779,-400.0,0.00030136,5]
[359550234,1746109839790,-400.0,0.00030136,5]
[359550235,1746109839800,-400.0,0.00030136,5]
[359550236,1746109839809,-163.85616769,0.00030136,5]
[359550238,1746109839819,-400.0,0.00030136,5]
[359550240,1746109839831,-400.0,0.00030136,5]
[359550242,1746109839841,-400.0,0.00030136,5]
[359550243,1746109839851,-400.0,0.00030136,5]
[359550244,1746109839861,-400.0,0.00030136,5]
[359550245,1746109839871,-400.0,0.00030136,5]
[359550246,1746109839881,-199.19224614,0.00030136,5]
[359550247,1746109839890,-400.0,0.00030136,5]
[359550248,1746109839900,-400.0,0.00030136,5]
[359550249,1746109839910,-400.0,0.00030136,5]
[359550250,1746109839920,-500.0,0.00030136,5]
[359550251,1746109839929,-205.17687803,0.00030136,5]
[359550252,1746109839939,-400.0,0.00030136,5]
[359550253,1746109839948,-400.0,0.00030136,5]
[359550254,1746109839958,-400.0,0.00030136,5]
[359550255,1746109839968,-400.0,0.00030136,5]
[359550256,1746109839977,-405.82490879,0.00030136,5]
[359550257,1746109839987,-400.0,0.00030136,5]
[359550258,1746109839996,-505.27153541,0.00030136,5]
[359550259,1746109840006,-403.78298982,0.00030136,5]
[359550261,1746109840016,-400.0,0.00030136,5]
[359550262,1746109840026,-400.0,0.00030136,5]
[359550263,1746109840036,-501.88113071,0.00030136,5]
[359550264,1746109840046,-400.0,0.00030136,5]
[359550265,1746109840056,-500.0,0.00030136,5]
[359550266,1746109840066,-701.43,0.00030136,5]
[359550267,1746109840076,-400.0,0.00030136,5]
[359550268,1746109840086,-400.0,0.00030136,5]
[359550269,1746109840097,-400.0,0.00030136,5]
[359550270,1746109840108,-400.0,0.00030136,5]
[359550271,1746109840119,-400.0,0.00030136,5]
[359550272,1746109840128,-400.0,0.00030136,5]
[359550273,1746109840138,-400.0,0.00030136,5]
[359550274,1746109840148,-400.0,0.00030136,5]
[359550275,1746109840159,-503.65941698,0.00030136,5]
[359550276,1746109840169,-405.38752281,0.00030136,30]
[359550277,1746109840180,-510.08888495,0.00030136,5]
[359550278,1746109840190,-401.91023753,0.00030136,5]
[359550279,1746109840200,-588.02,0.00030136,5]
[359550280,1746109840210,-470.4970922,0.00030136,5]
[359550281,1746109840220,-409.19049072,0.00030136,5]
[359550282,1746109840231,-400.0,0.00030136,5]
[359550283,1746109840240,-501.9365852,0.00030136,5]
[359550284,1746109840251,-400.0,0.00030136,5]
[359550285,1746109840267,-513.24409341,0.00030136,5]
[359550286,1746109840277,-267.03139433,0.00030136,5]
[359550287,1746109840286,-400.0,0.00030136,5]
[359550288,1746109840296,-400.0,0.00030136,5]
[359550289,1746109840305,-400.0,0.00030136,5]
[359550290,1746109840315,-400.0,0.00030136,5]
[359550291,1746109840325,-400.0,0.00030136,5]
[359550292,1746109840334,-335.55678851,0.00030136,5]
[359550293,1746109840344,-400.0,0.00030136,5]
[359550294,1746109840355,-400.0,0.00030136,5]
[359550295,1746109840365,-400.0,0.00030136,5]
[359550296,1746109840375,-400.0,0.00030136,5]
[359550297,1746109840384,-400.0,0.00030136,5]
[359550298,1746109840393,-401.9710118,0.00030136,5]
[359550299,1746109840403,-400.0,0.00030136,5]
[359550300,1746109840412,-401.71632736,0.00030136,5]
[359550301,1746109840421,-400.0,0.00030136,5]
[359550302,1746109840431,-400.0,0.00030136,5]
[359550303,1746109840440,-400.0,0.00030136,5]
[359550304,1746109840450,-400.0,0.00030136,5]
[359550305,1746109840459,-400.0,0.00030136,5]
[359550306,1746109840469,-400.0,0.00030136,5]
[359550307,1746109840478,-458.92,0.00030136,5]
[359550308,1746109840487,-902.03,0.00030136,5]
[359550309,1746109840497,-400.0,0.00030136,5]
[359550310,1746109840507,-400.0,0.00030136,5]
[359550311,1746109840518,-400.0,0.00030136,5]
[359550312,1746109840528,-515.16885373,0.00030136,5]
[359550313,1746109840537,-400.0,0.00030136,5]
[359550314,1746109840547,-400.0,0.00030136,5]
[359550315,1746109840556,-400.0,0.00030136,5]
[359550316,1746109840566,-400.0,0.00030136,5]
[359550317,1746109840575,-491.82,0.00030136,5]
[359550318,1746109840585,-400.0,0.00030136,5]
[359550319,1746109840594,-400.0,0.00030136,5]
[359550320,1746109840606,-400.0,0.00030136,5]
[359550321,1746109840615,-400.0,0.00030136,5]
[359550322,1746109840625,-724.95,0.00030136,5]
[359550323,1746109840634,-400.0,0.00030136,5]
[359550324,1746109840643,-400.0,0.00030136,2]
[359550325,1746109840653,-400.0,0.00030136,5]
[359550326,1746109840662,-530.15,0.00030136,5]
[359550327,1746109840672,-400.0,0.00030136,5]
[359550328,1746109840681,-400.0,0.00030136,5]
[359550329,1746109840690,-315.74945417,0.00030136,5]
[359550330,1746109840700,-599.32,0.00030136,5]
[359550331,1746109840710,-400.0,0.00030136,5]
[359550332,1746109840719,-400.0,0.00030136,5]
[359550333,1746109840729,-400.0,0.00030136,5]
[359550334,1746109840739,-400.0,0.00030136,5]
[359550335,1746109840752,-199.28130781,0.00030136,5]
[359550336,1746109840762,-400.0,0.00030136,5]
[359550337,1746109840772,-400.0,0.00030136,5]
[359550338,1746109840784,-400.0,0.00030136,5]
[359550339,1746109840794,-400.0,0.00030136,5]
[359550340,1746109840804,-711.11,0.00030136,5]
[359550341,1746109840813,-400.0,0.00030136,5]
[359550342,1746109840825,-400.0,0.00030136,5]
[359550343,1746109840834,-400.0,0.00030136,5]
[359550344,1746109840843,-1502.7,0.00030136,5]
[359550345,1746109840852,-400.0,0.00030136,5]
[359550346,1746109840862,-418.63664965,0.00030136,5]
[359550347,1746109840872,-400.0,0.00030136,5]
[359550348,1746109840881,-400.0,0.00030136,5]
[359550349,1746109840890,-400.0,0.00030136,5]
[359550350,1746109840901,-502.95863838,0.00030136,5]
[359550351,1746109840910,-400.0,0.00030136,5]
[359550352,1746109840920,-400.0,0.00030136,5]
[359550353,1746109840929,-400.0,0.00030136,5]
[359550354,1746109840939,-400.0,0.00030136,5]
[359550355,1746109840949,-400.0,0.00030136,5]
[359550356,1746109840959,-400.0,0.00030136,5]
[359550357,1746109840969,-400.0,0.00030136,5]
[359550358,1746109840979,-400.0,0.00030136,5]
[359550359,1746109840989,-400.0,0.00030136,5]
[359550360,1746109840998,-400.0,0.00030136,5]
[359550361,1746109841007,-896.85,0.00030136,5]
[359550362,1746109841017,-400.0,0.00030136,5]
[359550363,1746109841026,-400.0,0.00030136,5]
[359550364,1746109841036,-599.64,0.00030136,5]
[359550365,1746109841045,-1268.33,0.00030136,5]
[359550366,1746109841055,-1132.84,0.00030136,5]
[359550367,1746109841064,-400.0,0.00030136,5]
[359550368,1746109841074,-505.98969451,0.00030136,5]
[359550369,1746109841083,-400.0,0.00030136,5]
[359550370,1746109841093,-400.0,0.00030136,5]
[359550371,1746109841103,-400.0,0.00030136,5]
[359550372,1746109841113,-400.0,0.00030136,5]
[359550373,1746109841123,-400.0,0.00030136,5]
[359550374,1746109841132,-400.0,0.00030136,5]
[359550375,1746109841142,-400.0,0.00030136,5]
[359550376,1746109841152,-400.0,0.00030136,5]
[359550377,1746109841161,-889.06,0.00030136,5]
[359550378,1746109841171,-400.0,0.00030136,5]
[359550379,1746109841180,-400.0,0.00030136,5]
[359550380,1746109841190,-400.0,0.00030136,5]
[359550381,1746109841200,-940.91,0.00030136,5]
[359550382,1746109841210,-400.0,0.00030136,5]
[359550383,1746109841220,-400.0,0.00030136,5]
[359550384,1746109841230,-400.0,0.00030136,5]